bitfinex-derivatives/quotes_SOLF0:USTF0_20250829
["timestamp","ask_amount","ask_price","bid_price","bid_amount"]
[1756467475452,7.93,207.68,207.58,7.35]
[1756467475652,7.93,207.68,207.59,1.66714863]
[1756467475852,7.93,207.68,207.6,1.66714863]
[1756467476157,7.93,207.68,207.61,1.66714863]
[1756467476356,7.93,207.68,207.62,1.66714863]
[1756467476653,7.93,207.74,207.63,1.66701148]
[1756467476848,7.14687837,207.72,207.64,1.66701148]
[1756467477056,7.93,207.71,207.65,1.66701326]
[1756467477355,128.49,207.71,207.59,5.37378304]
[1756467477650,128.49,207.71,207.6,1.66709568]
[1756467477651,7.14687837,207.69,207.6,1.66709568]
[1756467477847,7.14687837,207.63,207.53,12.72378304]
[1756467478046,7.93,207.62,207.54,1.66853008]
[1756467478250,7.93,207.62,207.55,1.66853008]
[1756467478454,7.93,207.62,207.56,1.66853008]
[1756467478647,7.93,207.62,207.57,1.66853008]
[1756467478852,7.14687837,207.63,207.58,1.66853008]
[1756467479052,7.93,207.62,207.53,7.35]
[1756467479248,7.93,207.62,207.54,1.66871793]
[1756467479457,7.93,207.62,207.55,1.66871793]
[1756467479653,7.93,207.62,207.56,1.66871793]
[1756467479854,7.14687837,207.63,207.57,1.66871793]
[1756467480154,7.14687837,207.63,207.58,1.66871793]
[1756467480355,7.93,207.62,207.53,7.35]
[1756467480660,7.93,207.62,207.54,1.66880089]
[1756467480849,7.93,207.62,207.55,1.66880089]
[1756467481155,7.93,207.62,207.56,9.01880089]
[1756467481361,7.14687837,207.63,207.57,1.66880089]
[1756467481652,7.14687837,207.63,207.58,1.66880089]
[1756467481847,7.93,207.62,207.52,5.37378304]
[1756467482047,7.93,207.62,207.53,1.66973357]
[1756467482248,7.93,207.62,207.54,1.66973357]
[1756467482458,7.93,207.62,207.55,1.66973357]
[1756467482656,7.93,207.62,207.56,1.66973357]
[1756467482856,7.93,207.62,207.57,1.66973357]
[1756467483052,7.93,207.62,207.58,1.66973357]
[1756467483255,7.93,207.62,207.54,7.35]
[1756467483456,7.93,207.62,207.55,1.66953382]
[1756467483656,7.93,207.62,207.56,1.66953382]
[1756467483855,7.14687837,207.63,207.57,1.66953382]
[1756467484152,7.14687837,207.63,207.58,1.66953382]
[1756467484356,7.14687837,207.63,207.54,7.35]
[1756467484555,7.14687837,207.63,207.55,1.67005731]
[1756467484752,7.14687837,207.63,207.54,7.35]
[1756467484753,7.14687837,207.63,207.56,1.67005731]
[1756467485050,7.14687837,207.63,207.57,1.67005731]
[1756467485247,7.14687837,207.63,207.54,7.35]
[1756467485448,7.93,207.62,207.55,1.67081607]
[1756467485650,7.93,207.62,207.54,7.35]
[1756467485651,7.93,207.62,207.56,1.67081607]
[1756467485851,7.14687837,207.63,207.57,1.67081607]
[1756467486051,7.14687837,207.63,207.58,1.67081607]
[1756467486262,7.93,207.62,207.59,1.67081607]
[1756467486459,7.93,207.62,207.54,7.35]
[1756467486666,14.90687837,207.63,207.55,9.32102518]
[1756467486963,14.90687837,207.63,207.56,1.67102518]
[1756467487161,14.90687837,207.63,207.55,7.65]
[1756467488463,7.76,207.71,207.58,7.65]
[1756467488662,7.76,207.69,207.58,7.65]
[1756467488865,7.76,207.69,207.6,7.14687837]
[1756467489168,7.76,207.69,207.61,7.65]
[1756467490555,7.14687837,207.71,207.57,14.79687837]
[1756467490760,7.76,207.7,207.58,7.65]
[1756467490961,7.76,207.67,207.58,7.65]
[1756467491156,7.76,207.67,207.55,5.37378304]
[1756467491359,7.14687837,207.68,207.55,5.37378304]
[1756467491557,7.76,207.67,207.55,5.37378304]
[1756467491759,7.76,207.67,207.54,20.17066141]
[1756467491957,7.14687837,207.68,207.54,20.17066141]
[1756467492566,7.76,207.67,207.54,20.17066141]
[1756467492767,7.14687837,207.68,207.54,20.17066141]
[1756467493069,7.76,207.67,207.57,4.03035319]
[1756467494461,7.76,207.67,207.57,11.68035319]
[1756467494873,7.76,207.67,207.58,11.68035319]
[1756467496370,7.76,207.67,207.59,4.03035319]
[1756467498372,119.2,207.7,207.57,4.03035319]
[1756467498373,7.76,207.64,207.57,4.03035319]
[1756467499273,7.76,207.64,207.58,4.03035319]
[1756467504471,7.76,207.64,207.57,4.03035319]
[1756467505271,12.50988788,207.72,207.6,4.03035319]
[1756467505272,7.76,207.71,207.6,4.03035319]
[1756467505771,7.76,207.66,207.59,4.03035319]
[1756467506076,14.90687837,207.66,207.57,4.03035319]
[1756467507168,7.76,207.62,207.56,4.03035319]
[1756467507473,7.76,207.62,207.55,4.03035319]
[1756467507672,7.76,207.62,207.54,11.68035319]
[1756467507872,7.76,207.62,207.55,4.03035319]
[1756467508475,7.76,207.62,207.54,11.68035319]
[1756467514678,5.36300951,207.64,207.52,7.65]
[1756467514975,7.14687837,207.59,207.52,11.68035319]
[1756467515178,7.14687837,207.56,207.52,11.68035319]
[1756467516469,7.76,207.6,207.52,4.03035319]
[1756467516670,7.76,207.6,207.54,4.03035319]
[1756467517977,7.24,207.65,207.56,7.32]
[1756467518275,7.24,207.65,207.59,7.32]
[1756467518478,0.83833201,207.67,207.59,7.32]
[1756467519276,0.83833201,207.67,207.59,11.35035319]
[1756467519583,7.24,207.69,207.62,11.35035319]
[1756467519980,7.24,207.69,207.62,7.32]
[1756467520779,324.57818057,207.71,207.62,11.35035319]
[1756467521080,323.74,207.71,207.64,7.32]
[1756467521480,7.24,207.72,207.64,7.32]
[1756467521783,7.14687837,207.7,207.62,4.03035319]
[1756467521983,7.24,207.69,207.61,11.35035319]
[1756467522380,0.83808973,207.72,207.59,4.03035319]
[1756467522381,7.24,207.66,207.59,4.03035319]
[1756467522587,7.24,207.66,207.58,4.03035319]
[1756467523088,7.14687837,207.63,207.57,7.32]
[1756467529184,7.24,207.71,207.57,7.32]
[1756467529490,7.24,207.71,207.62,4.03035319]
[1756467529684,7.14687837,207.69,207.62,4.03035319]
[1756467529885,14.38687837,207.69,207.61,7.32]
[1756467531586,7.24,207.69,207.61,7.32]
[1756467531788,7.24,207.69,207.61,11.35035319]
[1756467533787,324.53808973,207.72,207.62,7.32]
[1756467533982,445.61808973,207.72,207.63,4.03035319]
[1756467534186,445.61808973,207.72,207.64,7.32]
[1756467534994,444.78,207.72,207.64,7.32]
[1756467535396,7.24,207.71,207.64,7.32]
[1756467536999,444.78,207.72,207.64,11.35035319]
[1756467537292,121.08,207.73,207.66,7.32]
[1756467538696,7.24,207.72,207.63,4.03035319]
[1756467538894,7.14687837,207.71,207.62,4.03035319]
[1756467540604,7.14687837,207.71,207.63,7.32]
[1756467542002,7.24,207.67,207.63,7.32]
[1756467543707,7.24,207.67,207.61,7.32]
[1756467544403,7.24,207.71,207.61,7.32]
[1756467544607,0.83802919,207.73,207.64,4.03035319]
[1756467544804,0.83802919,207.73,207.65,7.32]
[1756467546813,128.16,207.74,207.65,7.32]
[1756467547016,128.08,207.74,207.65,7.32]
[1756467547709,128.91800901,207.74,207.62,4.03035319]
[1756467547908,7.17,207.71,207.61,7.31]
[1756467548911,7.14687837,207.69,207.61,7.31]
[1756467549214,7.17,207.65,207.57,11.34035319]
[1756467549413,7.17,207.65,207.57,7.31]
[1756467551314,7.17,207.65,207.56,4.03035319]
[1756467551515,7.17,207.62,207.53,11.34035319]
[1756467551713,7.17,207.61,207.53,7.31]
[1756467551914,7.14687837,207.6,207.53,7.31]
[1756467552412,7.14687837,207.6,207.51,4.03035319]
[1756467552618,7.17,207.56,207.48,11.34035319]
[1756467553012,7.17,207.56,207.49,4.03035319]
[1756467553612,7.14687837,207.58,207.49,4.03035319]
[1756467553809,99.19,207.61,207.51,4.03035319]
[1756467554013,99.19,207.61,207.52,7.31]
[1756467554820,7.17,207.61,207.52,7.31]
[1756467556331,7.17,207.68,207.55,7.14687837]
[1756467556517,7.17,207.68,207.56,11.34035319]
[1756467557018,7.17,207.68,207.58,7.14687837]
[1756467557217,7.17,207.73,207.61,7.14687837]
[1756467557420,128.29,207.73,207.62,7.31]
[1756467561920,7.17,207.73,207.62,7.31]
[1756467562119,7.17,207.73,207.63,7.31]
[1756467562322,121.81800901,207.74,207.6,7.31]
[1756467562323,11.90561269,207.72,207.6,7.31]
[1756467562529,7.17,207.71,207.6,7.31]
[1756467563128,7.17,207.67,207.6,7.31]
[1756467563425,121.38,207.66,207.57,4.03035319]
[1756467563622,121.38,207.66,207.56,7.31]
[1756467563825,121.38,207.66,207.57,4.02625183]
[1756467564030,7.17,207.67,207.57,4.02625183]
[1756467564231,121.34,207.66,207.57,4.02625183]
[1756467564525,121.34,207.65,207.57,4.02625183]
[1756467565525,7.17,207.63,207.55,11.33625183]
[1756467568730,7.17,207.73,207.57,7.31]
[1756467569024,7.17,207.73,207.63,4.02625183]
[1756467569232,7.17,207.73,207.64,7.31]
[1756467569633,7.17,207.73,207.64,11.33625183]
[1756467569826,7.17,207.73,207.64,7.31]
[1756467570424,7.17,207.73,207.63,4.02625183]
[1756467570725,73.8236217,207.74,207.6,11.33625183]
[1756467570929,7.17,207.73,207.6,11.33625183]
[1756467571331,73.8236217,207.74,207.6,11.33625183]
[1756467571529,7.17,207.73,207.6,11.33625183]
[1756467572133,73.8236217,207.74,207.6,11.33625183]
[1756467573028,7.17,207.73,207.6,11.33625183]
[1756467573233,73.8236217,207.74,207.6,11.33625183]
[1756467574131,7.17,207.73,207.6,11.33625183]
[1756467574530,73.8236217,207.74,207.6,11.33625183]
[1756467574733,7.17,207.73,207.6,11.33625183]
[1756467575132,73.8236217,207.74,207.6,11.33625183]
[1756467575332,7.17,207.73,207.59,4.02625183]
[1756467575536,7.17,207.69,207.56,11.33625183]
[1756467575737,7.17,207.67,207.56,11.33625183]
[1756467576827,7.22,207.67,207.56,7.31]
[1756467578839,7.22,207.65,207.56,7.31]
[1756467581533,7.22,207.63,207.52,4.02625183]
[1756467581741,11.90561269,207.6,207.49,11.83625183]
[1756467581938,35.22,207.59,207.49,11.83625183]
[1756467582341,52.14,207.58,207.5,7.81]
[1756467582740,7.22,207.57,207.5,4.02625183]
[1756467583041,7.22,207.57,207.49,4.02625183]
[1756467584343,68.0,207.59,207.5,7.81]
[1756467584539,7.22,207.61,207.51,11.83625183]
[1756467584744,83.26,207.63,207.52,11.83625183]
[1756467585646,7.22,207.62,207.52,11.83625183]
[1756467585944,7.22,207.62,207.52,11.83718289]
[1756467586344,7.22,207.62,207.53,4.02718289]
[1756467587246,83.26,207.63,207.53,4.02718289]
[1756467587445,83.26,207.63,207.54,7.81]
[1756467587645,7.22,207.62,207.54,7.81]
[1756467592646,7.22,207.6,207.52,4.02718289]
[1756467592850,7.22,207.6,207.52,11.83718289]
[1756467593644,19.12561269,207.6,207.52,11.83718289]
[1756467594045,5.36300951,207.73,207.53,4.02718289]
[1756467594349,7.22,207.67,207.55,7.81]
[1756467594649,7.22,207.67,207.55,11.83718289]
[1756467595249,7.22,207.68,207.55,11.83718289]
[1756467595446,7.22,207.67,207.55,11.83718289]
[1756467596244,7.22,207.67,207.56,7.81]
[1756467596850,7.22,207.67,207.57,7.81]
[1756467601157,7.22,207.65,207.53,11.83718289]
[1756467601349,7.22,207.64,207.53,7.81]
[1756467601657,7.22,207.64,207.5,5.37378304]
[1756467601658,7.22,207.64,207.5,4.02718289]
[1756467601851,7.22,207.64,207.51,7.81]
[1756467602446,7.22,207.65,207.51,11.83718289]
[1756467602652,7.22,207.64,207.51,11.83718289]
[1756467603053,7.22,207.64,207.52,11.83718289]
[1756467603248,7.22,207.64,207.53,7.81]
[1756467603447,56.3,207.64,207.53,11.83718289]
[1756467603853,7.22,207.64,207.53,7.81]
[1756467604151,7.22,207.64,207.53,11.83718289]
[1756467604558,7.22,207.64,207.53,7.81]
[1756467606151,7.22,207.61,207.5,4.02718289]
[1756467606352,7.22,207.6,207.49,11.83718289]
[1756467606551,7.87,207.6,207.49,11.83718289]
[1756467606747,7.87,207.61,207.49,11.83718289]
[1756467606951,11.90561269,207.62,207.49,11.83718289]
[1756467607147,19.76,207.61,207.49,11.83718289]
[1756467607352,19.76,207.61,207.49,7.81]
[1756467607547,7.87,207.6,207.49,7.81]
[1756467607756,7.87,207.57,207.47,4.02718289]
[1756467608360,7.87,207.53,207.42,4.02718289]
[1756467608559,7.87,207.51,207.41,11.28718289]
[1756467609161,11.90561269,207.49,207.41,11.28718289]
[1756467609361,11.90561269,207.49,207.41,7.26]
[1756467610265,7.87,207.48,207.41,7.26]
[1756467611862,7.87,207.48,207.38,4.02718289]
[1756467612062,7.87,207.48,207.38,11.28718289]
[1756467612263,7.87,207.48,207.39,7.26]
[1756467612467,7.87,207.52,207.39,7.26]
[1756467612661,37.54,207.51,207.4,7.26]
[1756467612866,7.87,207.52,207.41,11.28718289]
[1756467613169,19.77561269,207.49,207.41,7.26]
[1756467614968,121.06,207.51,207.41,7.26]
[1756467615264,121.06,207.51,207.42,7.26]
[1756467615454,11.90561269,207.52,207.42,7.26]
[1756467615658,55.41,207.53,207.42,7.26]
[1756467616166,98.63,207.53,207.42,7.26]
[1756467616367,128.93,207.53,207.42,7.26]
[1756467616667,7.87,207.56,207.45,7.26]
[1756467617069,19.77561269,207.56,207.45,7.26]
[1756467618665,19.77561269,207.56,207.42,4.02718289]
[1756467618873,7.87,207.51,207.41,11.28718289]
[1756467619068,7.87,207.49,207.39,4.02718289]
[1756467619272,11.90561269,207.48,207.37,11.28718289]
[1756467619574,7.87,207.46,207.37,11.28718289]
[1756467619762,121.1,207.47,207.37,4.02718289]
[1756467619970,7.87,207.42,207.32,7.26]
[1756467620167,121.26,207.41,207.32,7.26]
[1756467620468,7.87,207.42,207.32,7.26]
[1756467620674,19.08,207.41,207.32,7.26]
[1756467620875,7.87,207.42,207.32,7.26]
[1756467621077,19.08,207.41,207.32,7.26]
[1756467623573,7.87,207.42,207.32,7.26]
[1756467623774,18.78,207.41,207.32,7.26]
[1756467624575,36.62,207.41,207.32,7.26]
[1756467625372,7.87,207.42,207.32,7.26]
[1756467625574,7.87,207.39,207.27,7.26]
[1756467625774,18.78,207.38,207.27,7.26]
[1756467627473,7.87,207.39,207.27,7.26]
[1756467627669,47.52,207.38,207.27,7.26]
[1756467628178,92.6,207.38,207.27,7.26]
[1756467628573,7.87,207.37,207.27,7.26]
[1756467630972,7.87,207.35,207.27,7.26]
[1756467633080,55.25,207.39,207.27,7.26]
[1756467633575,7.87,207.39,207.27,7.26]
[1756467633769,46.64,207.38,207.27,7.26]
[1756467635384,7.87,207.39,207.27,7.26]
[1756467635781,7.87,207.35,207.22,7.26]
[1756467636080,42.94,207.38,207.24,7.26]
[1756467636277,84.25,207.4,207.24,7.26]
[1756467636783,84.25,207.4,207.25,4.3421]
[1756467636984,7.87,207.4,207.26,7.5]
[1756467637387,7.87,207.4,207.3,7.5]
[1756467637786,7.92,207.44,207.32,4.3406]
[1756467637989,7.92,207.44,207.33,7.5]
[1756467638686,16.88,207.44,207.33,7.5]
[1756467638882,17.48,207.43,207.33,7.5]
[1756467639086,7.92,207.39,207.27,7.5]
[1756467639787,26.76,207.39,207.27,7.5]
[1756467640986,26.76,207.39,207.22,13.98718289]
[1756467640987,7.92,207.35,207.23,7.5]
[1756467641184,65.26,207.35,207.23,7.5]
[1756467641391,11.90561269,207.32,207.23,7.5]
[1756467641583,7.92,207.31,207.23,7.5]
[1756467641889,7.92,207.31,207.17,7.5]
[1756467642682,11.90561269,207.28,207.17,7.5]
[1756467642883,7.92,207.27,207.17,7.5]
[1756467643284,46.34,207.27,207.13,11.52718289]
[1756467643485,7.92,207.26,207.13,7.5]
[1756467644585,11.90561269,207.28,207.14,4.02718289]
[1756467644790,11.90561269,207.28,207.15,7.5]
[1756467645687,11.90561269,207.28,207.16,4.3439]
[1756467645888,11.90561269,207.28,207.17,7.5]
[1756467647886,7.92,207.3,207.15,11.52718289]
[1756467648091,7.92,207.3,207.17,7.5]
[1756467648895,7.92,207.3,207.18,4.3436]
[1756467649194,7.92,207.3,207.19,7.5]
[1756467653395,7.17318963,207.29,207.19,7.5]
[1756467653597,7.92,207.28,207.19,11.8435]
[1756467653995,181.78754845,207.36,207.2,7.5]
[1756467654295,7.92,207.33,207.22,7.5]
[1756467657298,130.28,207.33,207.22,7.5]
[1756467658596,7.92,207.33,207.22,11.8427]
[1756467658794,130.18,207.33,207.22,11.8427]
[1756467660198,7.92,207.32,207.22,11.8427]
[1756467660394,7.92,207.32,207.21,4.02718289]
[1756467660600,60.28,207.33,207.2,11.52718289]
[1756467660796,7.92,207.32,207.2,7.5]
[1756467660989,110.4,207.31,207.2,11.52718289]
[1756467661194,7.92,207.3,207.2,11.52718289]
[1756467661699,7.92,207.3,207.2,15.87038289]
[1756467662197,7.92,207.3,207.21,4.02718289]
[1756467662598,7.92,207.3,207.2,11.8432]
[1756467662599,7.92,207.3,207.2,11.52718289]
[1756467662800,130.14,207.3,207.2,7.5]
[1756467663294,130.14,207.3,207.2,11.52718289]
[1756467663794,130.08,207.3,207.21,4.02718289]
[1756467664300,7.92,207.3,207.22,7.5]
[1756467664495,7.92,207.42,207.29,7.5]
[1756467664702,7.92,207.42,207.33,7.17318963]
[1756467665292,7.92,207.42,207.32,7.5]
[1756467666093,7.92,207.47,207.35,11.52718289]
[1756467666298,7.92,207.47,207.39,11.52718289]
[1756467666494,7.92,207.47,207.39,7.5]
[1756467666695,52.75,207.51,207.39,7.5]
[1756467667092,52.75,207.51,207.39,4.02718289]
[1756467667291,52.75,207.51,207.4,11.7489]
[1756467667492,52.75,207.51,207.4,15.77608289]
[1756467668102,7.59,207.51,207.41,7.41]
[1756467671199,11.93583042,207.5,207.36,7.41]
[1756467671404,7.59,207.49,207.36,7.41]
[1756467671605,7.59,207.47,207.36,7.41]
[1756467672004,7.59,207.53,207.39,7.41]
[1756467673098,11.93583042,207.5,207.34,7.41]
[1756467673299,7.59,207.48,207.34,7.41]
[1756467673500,7.59,207.45,207.34,7.41]
[1756467674000,11.93583042,207.42,207.29,4.02718289]
[1756467674206,7.59,207.41,207.29,7.41]
[1756467680507,324.2,207.55,207.3,7.41]
[1756467680508,11.93583042,207.48,207.3,7.41]
[1756467680814,7.59,207.47,207.31,7.41]
[1756467681408,7.59,207.43,207.31,7.41]
[1756467681611,7.59,207.39,207.27,7.41]
[1756467681809,7.59,207.39,207.27,4.02718289]
[1756467682011,21.78,207.42,207.29,4.3412]
[1756467682213,21.78,207.42,207.3,7.41]
[1756467683317,7.59,207.43,207.3,7.41]
[1756467685213,7.59,207.43,207.31,11.93583042]
[1756467685417,7.59,207.43,207.32,7.41]
[1756467689420,7.59,207.43,207.27,7.41]
[1756467691420,7.59,207.43,207.27,11.93583042]
[1756467691628,7.59,207.46,207.28,7.41]
[1756467692520,19.52583042,207.46,207.28,7.41]
[1756467697023,18.78,207.47,207.26,8.36908289]
[1756467697024,7.26,207.37,207.26,4.02718289]
[1756467697224,7.26,207.33,207.23,7.18]
[1756467697427,11.93583042,207.3,207.23,7.18]
[1756467697629,19.19583042,207.3,207.23,7.18]
[1756467698133,19.19583042,207.3,207.19,11.20718289]
[1756467698333,19.19583042,207.3,207.2,4.02718289]
[1756467699330,19.19583042,207.34,207.21,7.18]
[1756467699526,7.26,207.34,207.22,7.18]
[1756467699735,7.26,207.34,207.22,11.20718289]
[1756467700236,11.93583042,207.33,207.22,7.18]
[1756467700426,7.26,207.32,207.22,7.18]
[1756467702134,7.26,207.32,207.22,11.20718289]
[1756467702537,7.26,207.32,207.22,4.02718289]
[1756467702739,7.26,207.32,207.23,7.18]
[1756467703439,7.26,207.32,207.23,11.5226]
[1756467704337,7.26,207.32,207.23,7.18]
[1756467713349,7.26,207.32,207.23,11.5225]
[1756467713541,7.26,207.35,207.24,11.20718289]
[1756467713845,7.26,207.35,207.25,4.02718289]
[1756467714240,7.26,207.35,207.24,11.20718289]
[1756467714440,7.26,207.35,207.25,4.02718289]
[1756467714639,7.26,207.35,207.25,8.36928289]
[1756467715550,7.26,207.35,207.25,4.02718289]
[1756467716544,7.26,207.35,207.24,11.20718289]
[1756467716943,7.26,207.35,207.25,4.02718289]
[1756467718344,7.26,207.35,207.26,4.02718289]
[1756467721256,324.08,207.4,207.27,7.18]
[1756467721450,7.26,207.39,207.3,7.18]
[1756467721752,7.26,207.39,207.3,15.54828289]
[1756467722544,7.26,207.39,207.31,4.3408]
[1756467722947,7.26,207.39,207.31,11.19592652]
[1756467723547,7.26,207.39,207.32,7.18]
[1756467723743,7.26,207.39,207.32,11.5206]
[1756467725455,7.26,207.39,207.31,4.02718289]
[1756467725647,7.26,207.39,207.3,4.02718289]
[1756467726051,7.26,207.39,207.31,7.18]
[1756467726447,7.26,207.39,207.32,4.02718289]
[1756467728658,7.83,207.51,207.32,8.36778289]
[1756467728861,7.83,207.45,207.32,8.36778289]
[1756467729059,7.83,207.45,207.32,4.02718289]
[1756467732659,7.83,207.45,207.32,4.04815512]
[1756467735960,7.83,207.42,207.32,4.04815512]
[1756467736163,60.33,207.42,207.32,4.04815512]
[1756467736460,52.5,207.42,207.31,11.32815512]
[1756467736661,7.83,207.41,207.31,11.32815512]
[1756467737463,7.83,207.41,207.32,7.28]
[1756467737661,7.83,207.41,207.33,7.28]
[1756467737862,7.83,207.41,207.33,11.21689875]
[1756467738063,7.83,207.41,207.34,7.28]
[1756467740762,7.83,207.41,207.33,4.04815512]
[1756467740961,7.83,207.4,207.31,7.28]
[1756467745365,7.83,207.4,207.31,11.32815512]
[1756467745760,7.83,207.4,207.31,7.28]
[1756467745964,7.83,207.4,207.31,11.32815512]
[1756467750265,7.83,207.4,207.32,4.04815512]
[1756467752777,7.83,207.4,207.33,7.28]
[1756467755973,7.83,207.4,207.33,11.32815512]
[1756467756175,7.83,207.4,207.33,7.28]
[1756467756480,7.83,207.4,207.33,11.32815512]
[1756467756679,7.83,207.4,207.33,7.28]
[1756467757380,7.83,207.4,207.33,11.32815512]
[1756467758878,7.83,207.4,207.34,4.04815512]
[1756467764380,7.83,207.4,207.27,7.16874363]
[1756467764381,0.839343,207.42,207.35,4.04815512]
[1756467764587,7.5,207.41,207.35,4.04815512]
[1756467765692,0.839343,207.42,207.36,7.9]
[1756467765985,7.5,207.45,207.4,4.04815512]
[1756467766178,7.5,207.48,207.41,7.9]
[1756467766381,0.8391406,207.47,207.4,4.04815512]
[1756467766577,7.5,207.46,207.4,4.04815512]
[1756467766886,7.5,207.46,207.39,4.04815512]
[1756467767989,7.5,207.46,207.4,7.9]
[1756467768389,7.5,207.46,207.4,11.94815512]
[1756467768787,7.5,207.46,207.41,4.04815512]
[1756467769184,7.5,207.46,207.42,7.9]
[1756467769586,7.5,207.46,207.41,4.04815512]
[1756467769987,7.5,207.46,207.42,7.9]
[1756467770388,7.5,207.49,207.42,7.9]
[1756467771091,7.5,207.47,207.39,4.04815512]
[1756467771286,7.5,207.47,207.38,4.04815512]
[1756467771686,7.5,207.44,207.38,4.04815512]
[1756467773594,7.5,207.44,207.37,4.04815512]
[1756467775090,7.5,207.44,207.36,4.04815512]
[1756467775897,7.5,207.44,207.37,4.04815512]
[1756467776090,7.5,207.44,207.35,7.9]
[1756467776091,7.5,207.44,207.36,4.04815512]
[1756467779399,7.5,207.44,207.37,4.04815512]
[1756467779601,7.5,207.44,207.37,11.94815512]
[1756467780100,7.5,207.44,207.37,7.9]
[1756467780398,7.5,207.44,207.37,11.94815512]
[1756467780693,7.5,207.44,207.38,4.04815512]
[1756467781299,93.64,207.49,207.39,7.9]
[1756467781995,7.5,207.47,207.39,7.9]
[1756467782204,7.5,207.47,207.38,4.04815512]
[1756467782494,7.5,207.47,207.36,11.94815512]
[1756467782693,7.16874363,207.48,207.36,11.94815512]
[1756467783298,7.5,207.47,207.36,11.94815512]
[1756467783500,7.16874363,207.48,207.36,11.94815512]
[1756467783704,119.44,207.47,207.36,11.94815512]
[1756467784799,7.5,207.46,207.37,7.9]
[1756467787301,7.5,207.46,207.37,11.94815512]
[1756467787705,7.5,207.46,207.39,7.91]
[1756467789304,8.69901922,207.5,207.41,4.04815512]
[1756467789501,8.69901922,207.5,207.42,7.91]
[1756467789708,324.16,207.52,207.44,7.91]
[1756467789908,324.16,207.52,207.44,11.95815512]
[1756467790109,7.86,207.53,207.44,11.95815512]
[1756467791107,7.16874363,207.52,207.44,4.04815512]
[1756467791300,7.86,207.51,207.42,4.04815512]
[1756467791504,7.86,207.51,207.41,11.95815512]
[1756467791704,7.16874363,207.52,207.41,11.95815512]
[1756467791906,7.86,207.48,207.39,4.04815512]
[1756467792107,7.86,207.48,207.38,4.04815512]
[1756467792307,7.16874363,207.49,207.37,11.95815512]
[1756467792506,7.86,207.48,207.37,11.95815512]
[1756467793110,7.86,207.48,207.39,7.91]
[1756467793306,7.86,207.48,207.39,11.95815512]
[1756467793504,7.86,207.48,207.39,7.91]
[1756467797911,7.86,207.48,207.38,4.04815512]
[1756467798114,7.86,207.45,207.37,11.95815512]
[1756467802220,7.16874363,207.46,207.37,4.04815512]
[1756467802516,7.86,207.42,207.34,4.04815512]
[1756467803113,7.86,207.42,207.33,11.95815512]
[1756467803820,43.26874363,207.43,207.33,11.95815512]
[1756467804214,7.16874363,207.4,207.33,7.91]
[1756467804415,7.86,207.39,207.33,11.96462457]
[1756467805117,7.86,207.39,207.33,4.05462457]
[1756467805414,7.86,207.39,207.32,4.05462457]
[1756467806617,7.86,207.39,207.31,4.05462457]
[1756467806813,7.86,207.36,207.29,4.05462457]
[1756467807020,7.86,207.33,207.27,4.05462457]
[1756467808024,7.86,207.33,207.25,7.91]